bitfinex-derivatives/quotes_SOLF0:USTF0_20251115
["timestamp","ask_amount","ask_price","bid_price","bid_amount"]
[1763199847410,3.33,141.69,141.61,3.14]
[1763199847614,3.33,141.69,141.65,9.67301454]
[1763199848017,3.33,141.69,141.64,6.53301454]
[1763199848220,3.33,141.67,141.64,6.53301454]
[1763199848421,3.38198384,141.67,141.64,0.05289359]
[1763199849527,3.38198384,141.67,141.64,9.72590813]
[1763199850118,3.38198384,141.67,141.65,3.14]
[1763199850424,0.05198384,141.67,141.65,9.67301454]
[1763199851018,3.23198384,141.67,141.65,9.67301454]
[1763199851222,0.05198384,141.67,141.66,3.37]
[1763199852924,3.23198384,141.67,141.65,3.37]
[1763199853722,3.23198384,141.67,141.64,6.58590813]
[1763199854323,3.23198384,141.67,141.64,0.05289359]
[1763199857427,3.18,141.65,141.61,6.53301454]
[1763199857632,3.18,141.65,141.61,3.37]
[1763199857825,3.18,141.65,141.61,9.90301454]
[1763199858633,3.18,141.65,141.62,0.04513407]
[1763199863936,3.18,141.63,141.62,0.04513407]
[1763199865032,3.18,141.62,141.58,6.53301454]
[1763199865235,3.18,141.61,141.58,6.53301454]
[1763199866034,3.23201249,141.61,141.58,6.58734103]
[1763199866637,3.23201249,141.61,141.58,0.05432649]
[1763199868330,3.18,141.59,141.58,0.05432649]
[1763199879350,0.05201249,141.61,141.58,0.05432649]
[1763199879551,3.23,141.6,141.58,0.05432649]
[1763199879747,3.23,141.6,141.58,3.33432649]
[1763199880051,0.05201249,141.61,141.58,3.33432649]
[1763199880248,3.28201249,141.61,141.58,3.33432649]
[1763199882049,3.28201249,141.61,141.58,0.05432649]
[1763199895660,3.28201249,141.61,141.54,6.53301454]
[1763199895863,3.23,141.59,141.53,9.81301454]
[1763199896561,3.23,141.59,141.54,3.28]
[1763199896767,3.23,141.57,141.55,0.04794217]
[1763199897067,3.23,141.57,141.55,3.32794217]
[1763199897465,3.23,141.57,141.55,0.04794217]
[1763199900368,3.23,141.55,141.5,6.53301454]
[1763199900568,3.23,141.55,141.49,9.81301454]
[1763199900965,3.23,141.55,141.49,6.53301454]
[1763199901167,3.23,141.55,141.47,8.71068606]
[1763199901168,3.23,141.55,141.48,6.53301454]
[1763199901359,0.05228575,141.53,141.5,3.32851945]
[1763199901563,3.23,141.54,141.51,3.28]
[1763199901765,0.04661725,141.53,141.51,3.28]
[1763199901967,3.27661725,141.53,141.5,3.32939151]
[1763199902472,3.27661725,141.53,141.5,0.04939151]
[1763199903778,3.23,141.52,141.5,0.04939151]
[1763199905975,3.23,141.52,141.46,6.53301454]
[1763199906170,3.07,141.5,141.44,6.53301454]
[1763199906763,3.07,141.47,141.46,0.04603968]
[1763199907875,0.05077193,141.48,141.46,3.15603968]
[1763199908075,3.12077193,141.48,141.46,3.15603968]
[1763199908574,0.05077193,141.48,141.46,3.15603968]
[1763199909074,3.12077193,141.48,141.46,3.15603968]
[1763199909672,3.12077193,141.48,141.46,0.04603968]
[1763199913478,3.31,141.47,141.41,3.11]
[1763199913680,3.31,141.47,141.39,9.92301454]
[1763199914379,3.31,141.47,141.4,3.39]
[1763199914577,0.05386004,141.43,141.41,0.04764319]
[1763199914777,3.35884692,141.43,141.41,0.04764319]
[1763199916084,0.04884692,141.43,141.41,3.43764319]
[1763199917078,3.35884692,141.43,141.41,0.04764319]
[1763199920581,0.04884692,141.43,141.41,3.43764319]
[1763199924388,3.35884692,141.43,141.41,0.04764319]
[1763199926092,0.04884692,141.43,141.41,3.43764319]
[1763199926489,3.35884692,141.43,141.41,3.43764319]
[1763199926886,3.35884692,141.43,141.41,0.04764319]
[1763199927785,0.04884692,141.43,141.41,3.43764319]
[1763199938792,3.08,141.48,141.41,3.43764319]
[1763199939192,3.08,141.48,141.42,3.14]
[1763199939791,0.05157708,141.46,141.42,3.14]
[1763199940290,3.13157708,141.46,141.42,3.14]
[1763199941395,3.13157708,141.46,141.43,3.14]
[1763199942094,0.05157708,141.46,141.43,3.14]
[1763199942599,3.13157708,141.46,141.43,3.14]
[1763199943298,3.13157708,141.46,141.43,9.62857761]
[1763199943595,3.13157708,141.46,141.44,3.14]
[1763199944394,0.05157708,141.46,141.44,3.14]
[1763199944595,0.05157708,141.46,141.45,9.62857761]
[1763199944796,0.05157708,141.46,141.45,3.14]
[1763199945001,0.05157708,141.46,141.45,9.62857761]
[1763199947291,0.05157708,141.46,141.45,3.14]
[1763199949503,0.05157708,141.46,141.45,9.68560802]
[1763199951199,0.05157708,141.46,141.44,6.59522282]
[1763199951404,0.05157708,141.46,141.44,9.73522282]
[1763199951606,0.05157708,141.46,141.45,9.68560802]
[1763199952903,0.05157708,141.46,141.45,3.14]
[1763199953408,0.05157708,141.46,141.45,9.68560802]
[1763199955905,3.13157708,141.46,141.44,0.0496148]
[1763199956705,3.08,141.44,141.4,6.54560802]
[1763199956903,3.08,141.44,141.39,9.68560802]
[1763199957709,3.08,141.42,141.4,0.05150273]
[1763199958502,3.08,141.42,141.4,9.73711075]
[1763199960112,3.08,141.42,141.4,0.05150273]
[1763199963924,3.17,141.4,141.36,6.54560802]
[1763199964426,1.58418142,141.37,141.34,6.54560802]
[1763199964617,1.58418142,141.37,141.31,3.3]
[1763199964618,3.17,141.36,141.33,6.54560802]
[1763199965016,3.22246329,141.36,141.33,6.59921315]
[1763199965217,3.22246329,141.36,141.33,0.05360513]
[1763199968317,3.22246329,141.36,141.33,3.35360513]
[1763199968318,0.05246329,141.36,141.33,3.35360513]
[1763199968515,0.05246329,141.36,141.33,4.93778655]
[1763199968717,0.05246329,141.36,141.34,3.3]
[1763199968919,0.05246329,141.36,141.35,4.88418142]
[1763199970224,0.05246329,141.36,141.34,3.3]
[1763199970726,3.22246329,141.36,141.33,3.35360513]
[1763199976128,3.22246329,141.36,141.33,0.05360513]
[1763199982725,3.3,141.34,141.33,0.05360513]
[1763199982925,3.3,141.34,141.28,3.26]
[1763199983830,0.04704682,141.32,141.3,3.30957939]
[1763199984332,3.34704682,141.32,141.3,0.04957939]
[1763199986132,3.3,141.3,141.24,3.26]
[1763199986529,3.3,141.3,141.22,1.58418142]
[1763199986734,3.3,141.28,141.21,4.84418142]
[1763199987235,3.3,141.25,141.23,0.04502331]
[1763199989034,4.88418142,141.25,141.23,0.04502331]
[1763199989338,3.3,141.24,141.18,4.84418142]
[1763199989735,3.3,141.24,141.19,3.26]
[1763199990136,3.3,141.24,141.11,22.74780876]
[1763199990137,3.3,141.22,141.2,0.05323166]
[1763199990332,3.3,141.22,141.15,3.26]
[1763199990333,3.3,141.2,141.15,3.26]
[1763199990538,3.3,141.18,141.16,0.05245199]
[1763199991243,0.04564168,141.19,141.18,3.26]
[1763199991636,0.04564168,141.19,141.16,3.31245199]
[1763199993029,0.04564168,141.19,141.18,3.26]
[1763199993844,3.31564168,141.19,141.16,5.00663341]
[1763199994037,3.31564168,141.19,141.16,0.05245199]
[1763199995741,3.27,141.17,141.16,0.05245199]
[1763199995936,3.27,141.17,141.1,4.95418142]
[1763199996140,3.27,141.15,141.07,4.95418142]
[1763199996337,3.27,141.15,141.08,3.37]
[1763199996942,1.58418142,141.16,141.1,0.04725517]
[1763199996943,3.27,141.12,141.1,0.04725517]
[1763199998640,0.05007584,141.13,141.1,3.41725517]
[1763200000740,0.05007584,141.13,141.12,3.37]
[1763200001146,1.58418142,141.19,141.12,3.37]
[1763200001147,4.85418142,141.19,141.12,3.37]
[1763200001342,3.27,141.19,141.13,4.95418142]
[1763200001641,1.58418142,141.17,141.1,4.95418142]
[1763200001844,3.27,141.16,141.1,4.95418142]
[1763200002244,3.31577015,141.14,141.12,0.04932731]
[1763200002848,0.04577015,141.14,141.12,3.41932731]
[1763200004644,3.31577015,141.14,141.12,0.04932731]
[1763200007350,0.04577015,141.14,141.12,3.41932731]
[1763200008354,3.31577015,141.14,141.12,0.04932731]
[1763200010250,0.04577015,141.14,141.12,3.41932731]
[1763200010848,0.04577015,141.14,141.13,4.95418142]
[1763200011053,3.27,141.17,141.14,3.37]
[1763200011954,3.3224257,141.17,141.14,3.37]
[1763200012258,3.3224257,141.17,141.12,3.41932731]
[1763200012656,0.0524257,141.17,141.12,3.41932731]
[1763200012853,0.0524257,141.17,141.14,3.37]
[1763200013546,3.3224257,141.17,141.12,5.90497237]
[1763200013752,3.3224257,141.17,141.12,0.04932731]
[1763200014348,3.3224257,141.17,141.12,3.41932731]
[1763200016355,3.3224257,141.17,141.12,0.04932731]
[1763200025566,5.80807076,141.17,141.12,0.04932731]
[1763200025764,3.09,141.16,141.12,0.04932731]
[1763200025964,3.09,141.14,141.06,3.2]
[1763200027063,3.13761231,141.11,141.09,0.0499134]
[1763200034667,72.41761231,141.11,141.04,6.54560802]
[1763200034872,3.19,141.1,141.03,6.54560802]
[1763200035363,3.19,141.08,141.03,6.54560802]
[1763200035570,3.19,141.08,141.02,6.54560802]
[1763200035763,2.48564506,141.09,141.02,6.54560802]
[1763200035764,3.19,141.05,141.04,0.04955171]
[1763200047776,3.19,141.05,140.98,6.54560802]
[1763200047975,3.19,141.05,140.98,9.76560802]
[1763200048365,3.19,141.05,140.99,3.22]
[1763200048767,0.04984289,141.03,141.01,3.26063398]
[1763200048967,0.04757588,141.03,141.01,3.26063398]
[1763200049180,3.19,141.08,141.01,3.26063398]
[1763200049368,3.19,141.08,141.01,3.22]
[1763200050175,3.24018321,141.06,141.03,0.05247291]
[1763200050375,3.24018321,141.06,141.03,3.27247291]
[1763200050778,3.24018321,141.06,141.03,0.05247291]
[1763200054078,3.27,141.04,141.03,0.05247291]
[1763200058176,3.27,141.04,140.96,3.37]
[1763200058384,3.27,141.02,140.96,3.37]
[1763200059185,0.04567094,141.0,140.99,3.37]
[1763200059578,3.31567094,141.0,140.98,0.03573695]
[1763200062581,5.801316,141.0,140.98,0.03573695]
[1763200062781,3.27,140.99,140.98,0.03573695]
[1763200065083,3.27,140.99,140.91,6.54560802]
[1763200065289,3.27,140.99,140.9,9.91560802]
[1763200065784,3.27,140.97,140.91,3.37]
[1763200065990,3.27,140.95,140.89,3.37]
[1763200066286,2.48564506,140.96,140.89,3.37]
[1763200066287,3.27,140.92,140.89,3.37]
[1763200067889,0.05108256,140.93,140.89,3.37]
[1763200068284,3.32108256,140.93,140.87,6.54560802]
[1763200068489,3.32108256,140.93,140.88,3.37]
[1763200071993,0.05108256,140.93,140.88,3.37]
[1763200072196,0.05108256,140.93,140.89,3.37]
[1763200073695,3.27,140.99,140.91,3.37]
[1763200074697,0.04814994,140.96,140.94,3.42108256]
[1763200074897,3.31814994,140.96,140.94,0.05108256]
[1763200079799,0.04814994,140.96,140.94,3.42108256]
[1763200081107,3.31814994,140.96,140.94,0.05108256]
[1763200081804,3.31814994,140.96,140.91,3.37]
[1763200083310,0.04814994,140.96,140.91,3.37]
[1763200083512,0.04814994,140.96,140.93,3.37]
[1763200085512,3.33814994,140.96,140.93,3.37]
[1763200087814,0.04814994,140.96,140.93,3.37]
[1763200089813,0.04814994,140.96,140.94,3.28]
[1763200092112,1.23437084,141.07,140.96,3.36]
[1763200092313,4.90561229,141.04,140.97,3.36]
[1763200093110,3.36155284,141.02,140.99,3.40814994]
[1763200093714,0.05155284,141.02,140.99,3.40814994]
[1763200097418,3.39155284,141.02,140.99,3.40814994]
[1763200097618,3.34,141.01,140.99,0.04814994]
[1763200099018,4.93561229,141.0,140.99,0.04814994]
[1763200100222,3.34,141.0,140.99,0.04814994]
[1763200101622,4.93561229,141.0,140.99,0.04814994]
[1763200102027,3.34,140.99,140.94,3.19]
[1763200102219,3.34,140.99,140.94,9.74279628]
[1763200102724,3.34,140.99,140.94,3.19]
[1763200103024,3.39223712,140.98,140.94,3.19]
[1763200105627,0.05223712,140.98,140.94,3.19]
[1763200105822,0.05223712,140.98,140.94,4.78561229]
[1763200106024,0.05223712,140.98,140.95,3.19]
[1763200106226,0.05223712,140.98,140.96,11.33840857]
[1763200106427,0.05223712,140.98,140.97,3.19]
[1763200107629,4.93561229,141.03,140.98,3.19]
[1763200108522,0.04932467,141.02,141.0,3.19]
[1763200116329,3.17932467,141.02,140.99,0.04572208]
[1763200117129,3.13,141.0,140.99,0.04572208]
[1763200127038,3.13,141.0,140.94,6.55279628]
[1763200127244,4.72561229,140.98,140.95,6.55279628]
[1763200127437,3.13,140.97,140.95,6.55279628]
[1763200128144,3.17699261,140.97,140.95,6.55279628]
[1763200131444,3.17699261,140.97,140.95,9.88279628]
[1763200132844,0.04699261,140.97,140.96,3.33]
[1763200139948,3.13,141.01,140.97,3.33]
[1763200140253,3.13,141.01,140.98,3.33]
[1763200140948,3.17589666,141.01,140.98,3.37578092]
[1763200141945,0.04589666,141.01,140.98,3.37578092]
[1763200142254,0.04589666,141.01,140.99,3.33]
[1763200142446,0.04589666,141.01,140.98,6.63837591]
[1763200142447,3.13,141.05,141.01,3.33]
[1763200143354,3.17917547,141.04,141.02,0.04609893]
[1763200145852,5.67159262,141.04,141.02,0.04609893]
[1763200146055,3.23,141.03,141.02,0.04609893]
[1763200146952,3.23,141.03,140.98,6.59259499]
[1763200147153,3.23,141.03,140.97,9.84259499]
[1763200148061,3.27916202,141.01,140.99,0.04614193]
[1763200152965,5.59241715,141.0,140.99,0.04614193]
[1763200153668,3.1,140.99,140.95,6.59259499]
[1763200153867,3.1,140.99,140.94,6.59259499]
[1763200154260,3.1,140.97,140.94,6.59259499]
[1763200154454,3.1,140.97,140.93,9.74259499]
[1763200154754,3.14892757,140.96,140.93,9.74259499]
[1763200155759,0.04892757,140.96,140.94,9.74259499]
[1763200155959,0.04892757,140.96,140.95,3.15]
[1763200158164,0.04892757,140.96,140.95,9.74259499]
[1763200158768,0.04892757,140.96,140.95,3.15]
[1763200159066,3.14892757,140.96,140.94,9.74259499]
[1763200159262,0.04892757,140.96,140.94,9.74259499]
[1763200159856,0.04892757,140.96,140.95,3.15]
[1763200164977,3.1,141.0,140.96,3.15]
[1763200165878,3.15210951,140.99,140.97,0.04682514]
[1763200166576,3.15210951,140.99,140.97,3.19682514]
[1763200167774,0.05210951,140.99,140.97,3.19682514]
[1763200169180,0.05210951,140.99,140.97,9.78942013]
[1763200169482,0.05210951,140.99,140.98,3.15]
[1763200174280,3.44210951,140.99,140.97,0.04682514]
[1763200174482,5.93452666,140.99,140.97,0.04682514]
[1763200174784,3.39,140.98,140.97,0.04682514]
[1763200178987,5.93452666,140.99,140.97,0.04682514]
[1763200179287,3.39,140.98,140.97,0.04682514]
[1763200179884,0.05210951,140.99,140.97,0.04682514]
[1763200179885,3.44210951,140.99,140.97,0.04682514]
[1763200181081,3.44210951,140.99,140.97,3.17682514]
[1763200181283,0.05210951,140.99,140.97,3.17682514]
[1763200181883,0.05210951,140.99,140.98,3.13]
[1763200182185,0.05210951,140.99,140.97,9.76942013]
[1763200182783,0.05210951,140.99,140.97,0.04682514]
[1763200182784,3.44210951,140.99,140.97,0.04682514]
[1763200186688,3.44210951,140.99,140.97,3.17682514]
[1763200189388,3.44210951,140.99,140.97,0.04682514]
[1763200192880,3.39,140.98,140.97,0.04682514]
[1763200197184,4.98609662,140.98,140.97,0.04682514]
[1763200199294,3.39,140.97,140.93,9.72259499]
[1763200199793,3.39,140.97,140.93,6.59259499]
[1763200200094,3.39,140.97,140.93,3.13]
[1763200200291,4.98609662,140.96,140.93,3.13]
[1763200200492,5.03766434,140.96,140.93,3.13]
[1763200200695,3.39,140.95,140.92,6.59259499]
[1763200200891,3.39,140.95,140.91,6.59259499]
[1763200201087,4.98609662,140.92,140.89,6.59259499]
[1763200201289,1.59609662,140.9,140.87,6.59259499]
[1763200201482,3.39,140.89,140.87,6.59259499]
[1763200201685,3.39,140.89,140.86,9.72259499]
[1763200201989,3.44152225,140.89,140.86,9.72259499]
[1763200202190,3.44152225,140.89,140.84,8.71068606]
[1763200202191,3.44152225,140.89,140.85,6.59259499]
[1763200202398,3.39,140.87,140.84,3.13]
[1763200202589,4.98609662,140.87,140.84,3.13]
[1763200202995,3.39,140.86,140.81,9.72259499]
[1763200203194,3.39,140.84,140.8,6.59259499]
[1763200203387,3.39,140.84,140.79,3.13]
[1763200203894,3.43854462,140.83,140.79,3.13]
[1763200205798,4.84609662,140.82,140.77,3.39]
[1763200206699,3.25,140.81,140.77,3.39]
[1763200208300,1.59609662,140.78,140.73,3.39]
[1763200208508,3.29623486,140.77,140.73,3.39]
[1763200208800,1.59609662,140.76,140.69,3.39]
[1763200209000,0.05273282,140.74,140.69,3.39]
[1763200209198,3.25,140.73,140.69,3.39]
[1763200209604,0.05273282,140.74,140.69,3.39]
[1763200210200,0.05273282,140.74,140.7,3.39]
[1763200210504,0.05273282,140.74,140.72,3.39]
[1763200210698,0.05273282,140.74,140.73,4.98609662]
[1763200210900,0.05273282,140.74,140.73,3.39]
[1763200211300,0.05273282,140.74,140.65,8.71068606]
[1763200211301,0.05273282,140.74,140.7,3.1]
[1763200211501,0.05226243,140.73,140.7,3.1]
[1763200212198,3.21226243,140.73,140.7,3.1]
[1763200212401,3.21226243,140.73,140.67,3.1]
[1763200212601,0.04688381,140.71,140.67,3.1]
[1763200213710,0.04688381,140.71,140.67,4.69609662]
[1763200214012,0.04688381,140.71,140.68,3.1]
[1763200215308,4.80298043,140.71,140.64,3.1]
[1763200215509,0.04976714,140.69,140.66,3.1]
[1763200215806,0.04976714,140.69,140.68,3.26]
[1763200216010,1.59609662,140.75,140.68,3.26]
[1763200216809,4.87609662,140.77,140.7,3.26]
[1763200217008,0.05376439,140.75,140.73,3.26]
[1763200217517,0.05376439,140.75,140.73,4.85609662]
[1763200217708,7.92,140.83,140.74,3.26]
[1763200217906,3.28,140.82,140.75,3.26]
[1763200218709,0.04655856,140.8,140.77,3.30950768]
[1763200220817,6.60423251,140.96,140.77,3.30950768]
[1763200220818,1.59609662,140.87,140.79,3.26]
[1763200221014,1.59609662,140.87,140.81,3.26]
[1763200221717,3.28,140.88,140.81,3.26]
[1763200221915,88.48,140.91,140.81,3.26]
[1763200222219,0.05015147,140.87,140.85,3.31104931]
[1763200222418,0.04941749,140.87,140.85,3.31035065]
[1763200222913,3.32941749,140.87,140.85,0.05035065]
[1763200224015,0.04941749,140.87,140.85,0.05035065]
[1763200224217,0.04941749,140.87,140.85,3.31035065]
[1763200230217,3.32941749,140.87,140.85,0.05035065]
[1763200230518,1.64551411,140.87,140.85,3.31035065]
[1763200231623,4.92551411,140.87,140.85,0.05035065]
[1763200231823,3.28,140.86,140.85,0.05035065]
[1763200232924,3.28,140.86,140.78,1.59609662]
[1763200232925,3.28,140.85,140.78,3.26]
[1763200233119,4.87609662,140.82,140.78,3.26]
[1763200233819,0.04824193,140.81,140.79,0.04647651]
[1763200234025,1.64433855,140.81,140.79,0.04647651]
[1763200234626,1.64433855,140.81,140.79,3.37647651]
[1763200234819,0.04824193,140.81,140.79,3.37647651]
[1763200235819,1.59609662,140.86,140.79,3.37647651]
[1763200236920,0.05099339,140.84,140.79,3.37647651]
[1763200237222,0.05099339,140.84,140.81,3.33]
[1763200238121,3.88431022,140.9,140.83,3.33]
[1763200239120,3.38054973,140.88,140.85,3.38404807]
[1763200239327,3.38054973,140.88,140.85,0.05404807]
[1763200239728,3.38054973,140.88,140.85,3.38404807]
[1763200240526,0.05054973,140.88,140.85,3.38404807]
[1763200242533,3.38054973,140.88,140.85,3.38404807]
[1763200243924,0.05054973,140.88,140.85,3.38404807]
[1763200244729,3.38054973,140.88,140.85,0.05404807]
[1763200245432,3.38054973,140.88,140.85,3.38404807]
[1763200246031,3.38054973,140.88,140.85,0.05404807]
[1763200247129,3.38054973,140.88,140.85,3.38404807]
[1763200248728,0.05054973,140.88,140.85,3.38404807]
[1763200249922,3.38054973,140.88,140.85,0.05404807]
[1763200250123,3.38054973,140.88,140.85,3.38404807]
[1763200251833,0.05054973,140.88,140.85,3.38404807]
[1763200261139,3.38054973,140.88,140.85,0.05404807]
[1763200261334,3.38054973,140.88,140.85,3.38404807]
[1763200261335,5.876801,140.88,140.85,3.38404807]
[1763200261540,0.05054973,140.88,140.85,3.38404807]
[1763200261936,3.38054973,140.88,140.85,3.38404807]
[1763200262137,5.876801,140.88,140.85,0.05404807]
[1763200262339,3.33,140.87,140.85,0.05404807]
[1763200262837,0.05054973,140.88,140.85,3.38404807]
[1763200264237,0.05054973,140.88,140.85,9.92902103]
[1763200264439,0.05054973,140.88,140.86,3.35]
[1763200266734,0.05054973,140.88,140.87,3.35]
[1763200270747,3.08,140.94,140.88,3.35]
[1763200270941,3.08,140.94,140.89,3.35]
[1763200271848,3.16,140.92,140.9,0.05140329]
[1763200272043,3.16,140.92,140.9,3.22140329]
[1763200272244,5.70837294,140.93,140.9,3.22140329]
[1763200273140,3.16,140.92,140.9,0.05140329]
[1763200274046,3.16,140.9,140.86,6.62640662]
[1763200274546,3.16,140.9,140.86,9.79640662]
[1763200274939,0.0521932,140.89,140.87,0.04512864]
[1763200275141,0.0521932,140.89,140.87,3.21512864]
[1763200277149,0.0521932,140.89,140.87,9.84153526]
[1763200277450,5.65625127,140.94,140.89,3.17]
[1763200277650,3.16,140.93,140.89,3.17]
[1763200278350,2.49625127,140.94,140.88,6.62640662]
[1763200278351,0.05187163,140.92,140.91,3.17]
[1763200280946,3.16,140.96,140.91,3.17]
[1763200282046,0.04983423,140.95,140.91,3.17]
[1763200283942,3.20983423,140.95,140.91,3.17]
[1763200285947,0.04983423,140.95,140.91,3.17]
[1763200286144,0.04983423,140.95,140.91,5.66625127]
[1763200286350,3.16,141.0,140.95,3.17]
[1763200286547,2.49625127,141.02,140.96,3.17]
[1763200287046,25.86,141.03,140.96,3.17]
[1763200287249,0.05147496,141.01,140.98,0.04508626]
[1763200287450,0.05147496,141.01,140.98,3.21508626]
[1763200288351,3.21147496,141.01,140.98,0.04508626]
[1763200289150,3.21147496,141.01,140.98,3.21508626]
[1763200290047,0.05147496,141.01,140.98,3.21508626]
[1763200291648,3.16,141.07,140.98,3.21508626]
[1763200291852,3.16,141.07,140.99,3.17]
[1763200292252,3.16,141.07,141.0,3.17]
[1763200292647,3.2100255,141.05,141.02,0.05149009]
[1763200292849,3.16,141.04,141.02,0.05149009]
[1763200293152,3.16,141.03,141.02,0.05149009]
[1763200296458,5.66627677,141.05,141.02,0.05149009]
[1763200296657,3.12,141.04,141.02,0.05149009]
[1763200298257,2.54627677,141.05,141.02,3.23149009]
[1763200298458,5.66627677,141.05,141.02,3.23149009]
[1763200298659,5.66627677,141.05,141.02,0.05149009]
[1763200299858,5.66627677,141.05,141.02,3.23149009]
[1763200300460,5.66627677,141.05,141.02,0.05149009]
[1763200300661,3.12,141.04,141.02,0.05149009]
[1763200306161,5.66627677,141.05,141.02,3.23149009]
[1763200307065,3.1700255,141.05,141.02,3.23149009]
[1763200308069,3.1700255,141.05,141.02,0.05149009]
[1763200308269,5.66627677,141.05,141.02,0.05149009]
[1763200308465,3.12,141.04,141.02,0.05149009]
[1763200310865,3.12,141.02,140.96,3.18]
[1763200311073,3.12,141.01,140.96,3.18]
[1763200311863,3.73068779,141.05,140.93,3.18]
[1763200311864,3.12,140.99,140.93,3.18]
[1763200312068,0.05144616,140.97,140.95,3.22686399]
[1763200312961,3.17144616,140.97,140.95,0.04686399]
[1763200319973,0.05144616,140.97,140.95,3.22686399]
[1763200320376,3.17144616,140.97,140.95,0.04686399]
[1763200320671,3.12,140.96,140.95,0.04686399]
[1763200324572,1.64727205,140.97,140.95,0.04686399]
[1763200324868,3.24144616,140.97,140.95,0.04686399]
[1763200329682,0.05144616,140.97,140.95,3.13686399]
[1763200331380,3.30144616,140.97,140.95,0.04686399]
[1763200331681,4.84582589,140.96,140.95,0.04686399]
[1763200331985,3.25,140.95,140.9,6.55114583]
[1763200332185,3.25,140.93,140.9,3.35]
[1763200332483,3.25,140.93,140.89,9.90114583]
[1763200332683,3.25,140.93,140.89,3.35]
[1763200333183,1.59582589,140.94,140.9,0.04717614]
[1763200333184,3.2955744,140.92,140.9,0.04717614]
[1763200336692,3.25,140.91,140.9,0.04717614]
[1763200336995,3.25,140.91,140.85,3.35]
[1763200337990,3.25,140.91,140.87,3.39564198]
[1763200338190,0.05024122,140.9,140.87,3.39564198]
[1763200338989,3.30024122,140.9,140.87,3.39564198]
[1763200341297,0.05024122,140.9,140.87,3.39564198]
[1763200343000,4.84582589,140.96,140.88,3.35]
[1763200343498,4.84582589,140.98,140.91,1.59582589]
[1763200343700,4.84582589,140.98,140.92,3.35]
[1763200344202,0.05433707,140.96,140.94,0.04562548]
[1763200344395,3.30433707,140.96,140.94,0.04562548]
[1763200351606,0.05433707,140.96,140.94,3.39562548]
[1763200352208,3.30433707,140.96,140.94,3.39562548]
[1763200352399,0.05433707,140.96,140.94,3.39562548]
[1763200352908,0.05433707,140.96,140.95,3.35]
[1763200354210,9.5,141.0,140.95,3.35]
[1763200354399,3.34,141.03,140.98,1.59582589]
[1763200354908,3.34,141.03,140.95,11.36697172]
[1763200355309,3.39294719,141.0,140.98,0.04585563]
[1763200362819,3.39294719,141.0,140.93,6.60980444]
[1763200362820,3.34,140.99,140.93,6.60980444]
[1763200363120,3.34,140.99,140.92,11.42563033]
[1763200363908,3.34,140.96,140.94,0.04620481]
[1763200364112,0.05463007,140.96,140.94,3.27003673]
[1763200367217,0.05463007,140.96,140.94,9.87984117]
[1763200367419,0.05463007,140.96,140.95,3.22]
[1763200367915,3.39463007,140.96,140.94,0.05003673]
[1763200368123,0.05463007,140.96,140.94,3.27003673]
[1763200369818,0.05463007,140.96,140.94,11.47566706]
[1763200370020,0.05463007,140.96,140.95,3.22]
[1763200370223,4.93582589,141.01,140.95,3.22]
[1763200371125,3.34,141.0,140.95,3.22]
[1763200371328,3.39005072,140.99,140.95,3.22]
[1763200372922,3.39005072,140.99,140.96,3.22]
[1763200373527,0.05005072,140.99,140.96,3.22]
[1763200374128,3.39005072,140.99,140.96,3.22]
[1763200374528,0.05005072,140.99,140.96,3.22]
[1763200374730,0.05005072,140.99,140.96,9.82980444]
[1763200374922,0.05005072,140.99,140.97,3.22]
[1763200382635,0.05005072,140.99,140.97,9.82980444]
[1763200382837,0.05005072,140.99,140.98,3.22]
[1763200383235,3.34,141.02,140.98,3.22]
[1763200384138,3.40500724,141.01,140.98,3.22]
[1763200389234,3.40500724,141.01,140.97,9.90310444]
[1763200389536,3.40500724,141.01,140.98,3.24]
[1763200389739,3.36,141.04,140.99,3.24]
[1763200389939,3.36,141.04,141.01,3.24]
[1763200390937,3.40648645,141.04,141.01,0.04666464]
[1763200392844,3.16,141.02,141.01,0.04666464]
[1763200399348,0.04648645,141.04,141.01,0.04666464]